fUSD/lending_fUSD_20240301
["ID","MTS","AMOUNT","RATE_DAILY","PERIOD"]
[315988032,1709315461906,-6946.66,0.00022356,2]
[315988033,1709315461916,-533.74,0.00022356,2]
[315988034,1709315461925,-500.0,0.00022356,2]
[315988035,1709315461935,-500.0,0.00022356,2]
[315988036,1709315461945,-500.0,0.00022356,2]
[315988037,1709315461955,-656.16,0.00022356,2]
[315988038,1709315461964,-732.2,0.00022356,2]
[315988039,1709315461975,-500.0,0.00022356,2]
[315988040,1709315461984,-507.65,0.00022356,2]
[315988041,1709315461994,-624.26,0.00022356,2]
[315988042,1709315462005,-619.16,0.00022356,2]
[315988043,1709315462015,-500.0,0.00022356,2]
[315988044,1709315462025,-500.0,0.00022356,2]
[315988045,1709315462035,-594.79,0.00022356,2]
[315988046,1709315462045,-1910.74,0.00022356,2]
[315988047,1709315462056,-500.0,0.00022356,2]
[315988048,1709315462068,-500.0,0.00022356,2]
[315988049,1709315462078,-500.0,0.00022356,2]
[315988050,1709315462088,-500.0,0.00022356,2]
[315988051,1709315462098,-787.67,0.00022356,2]
[315988052,1709315462109,-500.0,0.00022356,2]
[315988053,1709315462118,-500.0,0.00022356,2]
[315988054,1709315462128,-500.0,0.00022356,2]
[315988055,1709315462138,-666.11,0.00022356,2]
[315988056,1709315462148,-500.0,0.00022356,2]
[315988057,1709315462159,-758.67,0.00022356,2]
[315988058,1709315462170,-500.0,0.00022356,2]
[315988059,1709315462180,-500.0,0.00022356,2]
[315988060,1709315462191,-500.0,0.00022356,2]
[315988061,1709315462203,-1272.43,0.00022356,2]
[315988062,1709315462213,-500.0,0.00022356,2]
[315988063,1709315462224,-585.06,0.00022356,2]
[315988064,1709315462235,-500.0,0.00022356,2]
[315988065,1709315462247,-500.0,0.00022356,2]
[315988066,1709315462258,-500.0,0.00022356,2]
[315988067,1709315462269,-500.0,0.00022356,2]
[315988068,1709315462279,-500.0,0.00022356,2]
[315988069,1709315462290,-500.0,0.00022356,2]
[315988070,1709315462300,-541.25979542,0.00022356,2]
[315988071,1709315462310,-500.0,0.00022356,2]
[315988072,1709315462320,-618.2,0.00022356,2]
[315988073,1709315462330,-665.9,0.00022356,2]
[315988074,1709315462340,-500.0,0.00022356,2]
[315988075,1709315462350,-500.0,0.00022356,2]
[315988076,1709315462361,-1673.3,0.00022356,2]
[315988077,1709315462371,-663.58,0.00022356,2]
[315988078,1709315462380,-9419.71,0.00022356,2]
[315988079,1709315462390,-2865.09,0.00022356,2]
[315988080,1709315462399,-500.0,0.00022356,2]
[315988081,1709315462409,-500.0,0.00022356,2]
[315988082,1709315462419,-528.92,0.00022356,2]
[315988083,1709315462429,-500.0,0.00022356,2]
[315988084,1709315462440,-500.0,0.00022356,2]
[315988085,1709315462450,-500.0,0.00022356,2]
[315988086,1709315462463,-944.55,0.00022356,2]
[315988087,1709315462473,-1231.33,0.00022356,2]
[315988088,1709315462483,-471.64,0.00022356,2]
[315988089,1709315462493,-1977.21,0.00022356,2]
[315988090,1709315462504,-1758.33,0.00022356,2]
[315988091,1709315462514,-500.0,0.00022356,2]
[315988092,1709315462524,-1744.78,0.00022356,2]
[315988093,1709315462534,-2280.14,0.00022356,2]
[315988094,1709315462544,-500.0,0.00022356,2]
[315988095,1709315462555,-1846.58,0.00022356,2]
[315988096,1709315462565,-712.05,0.00022356,2]
[315988097,1709315462576,-1450.15,0.00022356,2]
[315988098,1709315462586,-1761.94,0.00022356,2]
[315988099,1709315462597,-500.0,0.00022356,2]
[315988100,1709315462608,-584.38,0.00022356,2]
[315988101,1709315462618,-500.0,0.00022356,2]
[315988102,1709315462629,-503.41,0.00022356,2]
[315988103,1709315462640,-500.0,0.00022356,2]
[315988104,1709315462651,-500.0,0.00022356,2]
[315988105,1709315462661,-694.9,0.00022356,2]
[315988106,1709315462672,-1357.38,0.00022356,2]
[315988107,1709315462682,-500.0,0.00022356,2]
[315988108,1709315462692,-500.0,0.00022356,2]
[315988109,1709315462703,-500.0,0.00022356,2]
[315988110,1709315462713,-558.06,0.00022356,2]
[315988111,1709315462723,-528.52,0.00022356,2]
[315988112,1709315462734,-5039.85,0.00022356,2]
[315988113,1709315462743,-1616.86,0.00022356,2]
[315988114,1709315462754,-500.0,0.00022356,2]
[315988115,1709315462764,-711.94,0.00022356,2]
[315988116,1709315462774,-500.0,0.00022356,2]
[315988117,1709315462784,-500.0,0.00022356,2]
[315988118,1709315462794,-2715.45,0.00022356,2]
[315988119,1709315462804,-151.0,0.00022356,7]
[315988120,1709315462814,-2578.97,0.00022356,2]
[315988121,1709315462824,-500.0,0.00022356,2]
[315988122,1709315462834,-615.02,0.00022356,2]
[315988123,1709315462844,-500.0,0.00022356,2]
[315988124,1709315462854,-780.7,0.00022356,2]
[315988125,1709315462865,-2063.98,0.00022356,2]
[315988126,1709315462906,-500.0,0.00022356,2]
[315988127,1709315462916,-500.0,0.00022356,2]
[315988128,1709315462926,-2907.93,0.00022356,2]
[315988129,1709315462936,-500.0,0.00022356,2]
[315988130,1709315462946,-1187.01,0.00022356,2]
[315988131,1709315462956,-840.0,0.00022356,2]
[315988132,1709315462965,-500.0,0.00022356,2]
[315988133,1709315462975,-1838.6,0.00022356,2]
[315988134,1709315462985,-500.0,0.00022356,2]
[315988135,1709315462995,-500.0,0.00022356,2]
[315988136,1709315463005,-528.96,0.00022356,2]
[315988137,1709315463015,-3945.02,0.00022356,2]
[315988138,1709315463026,-637.74,0.00022356,2]
[315988139,1709315463036,-500.0,0.00022356,2]
[315988140,1709315463046,-1575.62,0.00022356,2]
[315988141,1709315463056,-500.0,0.00022356,2]
[315988142,1709315463066,-191.49831088,0.00022356,2]
[315988143,1709315463076,-648.77,0.00022356,2]
[315988144,1709315463085,-2766.29,0.00022356,2]
[315988145,1709315463095,-724.82,0.00022356,2]
[315988146,1709315463106,-500.0,0.00022356,2]
[315988147,1709315463116,-500.0,0.00022356,2]
[315988148,1709315463327,-2335.5,0.00022356,2]
[315988149,1709315463344,-500.0,0.00022356,2]
[315988150,1709315463355,-500.0,0.00022356,2]
[315988151,1709315463365,-2362.12,0.00022356,2]
[315988152,1709315463375,-500.0,0.00022356,2]
[315988153,1709315463385,-500.0,0.00022356,2]
[315988154,1709315463394,-704.7,0.00022356,2]
[315988155,1709315463405,-500.0,0.00022356,2]
[315988156,1709315463415,-8337.41,0.00022356,2]
[315988157,1709315463425,-583.26,0.00022356,2]
[315988158,1709315463434,-500.0,0.00022356,2]
[315988159,1709315463445,-500.0,0.00022356,2]
[315988160,1709315463456,-500.0,0.00022356,2]
[315988161,1709315463466,-500.0,0.00022356,2]
[315988162,1709315463475,-1148.57,0.00022356,2]
[315988163,1709315463485,-1699.62,0.00022356,2]
[315988164,1709315463495,-500.0,0.00022356,2]
[315988165,1709315463504,-500.0,0.00022356,2]
[315988166,1709315463514,-551.1,0.00022356,2]
[315988167,1709315463523,-500.0,0.00022356,2]
[315988168,1709315463533,-500.0,0.00022356,2]
[315988169,1709315463543,-701.9,0.00022356,2]
[315988170,1709315463553,-5377.1,0.00022356,2]
[315988171,1709315463562,-4734.59,0.00022356,2]
[315988172,1709315463572,-1549.54,0.00022356,2]
[315988173,1709315463582,-1054.75,0.00022356,2]
[315988174,1709315463592,-575.91,0.00022356,2]
[315988175,1709315463601,-500.0,0.00022356,2]
[315988176,1709315463611,-500.0,0.00022356,2]
[315988177,1709315463621,-500.0,0.00022356,2]
[315988178,1709315463631,-2323.9572401,0.00022373,2]
[315988179,1709315463640,-500.0,0.000224,2]
[315988180,1709315463651,-6959.03722845,0.000224,2]
[315988181,1709315463660,-1873.01921599,0.00022414,2]
[315988182,1709315463670,-504.25246962,0.00022414,2]
[315988183,1709315463680,-2375.92492461,0.00022414,2]
[315988184,1709315463689,-1000.34221376,0.00022414,2]
[315988185,1709315463699,-150.03,0.00022419,2]
[315988186,1709315463709,-842.55383967,0.00022431,2]
[315988187,1709315463718,-5376.20073598,0.00022431,2]
[315988188,1709315463728,-1377.628,0.00022432,2]
[315988189,1709315463737,-2699.0,0.00022432,2]
[315988190,1709315463746,-956.0,0.00022432,2]
[315988191,1709315463756,-1230.0,0.00022432,2]
[315988192,1709315463765,-672.277,0.00022432,2]
[315988193,1709315463774,-534.0,0.00022432,2]
[315988194,1709315463783,-217.0,0.00022432,2]
[315988195,1709315463792,-1259.0,0.00022432,2]
[315988196,1709315463801,-1007.0,0.00022432,2]
[315988197,1709315463810,-1956.0,0.00022432,2]
[315988198,1709315463820,-601.0,0.00022432,2]
[315988199,1709315463829,-431.0,0.00022432,2]
[315988200,1709315463838,-322.0,0.00022432,2]
[315988201,1709315463848,-879.0,0.00022432,2]
[315988202,1709315463857,-425.802,0.00022432,2]
[315988203,1709315463866,-310.94,0.00022432,2]
[315988204,1709315463876,-1547.309,0.00022432,2]
[315988205,1709315463886,-1233.13,0.00022432,2]
[315988206,1709315463895,-393.796,0.00022432,2]
[315988207,1709315463905,-2923.0,0.00022432,2]
[315988208,1709315463914,-392.0,0.00022432,2]
[315988209,1709315463924,-298.0,0.00022432,2]
[315988210,1709315463934,-1835.023,0.00022432,2]
[315988211,1709315463944,-2285.0,0.00022432,2]
[315988212,1709315463954,-250.0,0.00022432,2]
[315988213,1709315463963,-10306.903,0.00022432,2]
[315988214,1709315463973,-158.0,0.00022432,2]
[315988215,1709315463983,-159.725,0.00022432,2]
[315988216,1709315463992,-874.929,0.00022432,2]
[315988217,1709315464002,-11594.0,0.00022432,2]
[315988218,1709315464011,-236.538,0.00022432,2]
[315988219,1709315464021,-200.0,0.00022432,2]
[315988220,1709315464031,-150.154,0.00022432,2]
[315988221,1709315464040,-153.577,0.00022432,2]
[315988222,1709315464050,-150.141,0.00022432,2]
[315988223,1709315464060,-166.85,0.00022432,2]
[315988224,1709315464070,-378.26812093,0.00022447,4]
[315988225,1709315464081,-190.0,0.00022448,2]
[315988226,1709315464090,-1000.0,0.00022449,3]
[315988227,1709315464100,-537.18463371,0.00022449,3]
[315988228,1709315464110,-487.45235308,0.00022449,3]
[315988229,1709315464119,-250.48408486,0.00022449,3]
[315988230,1709315464129,-196.92028349,0.00022449,3]
[315988231,1709315464138,-2800.89332169,0.00022449,3]
[315988232,1709315464149,-267.44537821,0.00022449,3]
[315988233,1709315464158,-211.03034922,0.00022449,3]
[315988234,1709315464172,-3714.64769037,0.0002245,2]
[315988235,1709315464181,-249.04958247,0.00022455,2]
[315988236,1709315464192,-358211.82765736,0.00022464,2]
[315988237,1709315464202,-988.25,0.00022464,2]
[315988238,1709315464212,-764.5,0.00022465,2]
[315988239,1709315464221,-500.0,0.00022465,2]
[315988240,1709315464231,-500.0,0.00022465,2]
[315988241,1709315464241,-500.0,0.00022465,2]
[315988242,1709315464251,-500.0,0.00022465,2]
[315988243,1709315464260,-368.16,0.00022465,2]
[315988244,1709315464269,-500.0,0.00022465,2]
[315988245,1709315464279,-500.0,0.00022465,2]
[315988246,1709315464289,-500.0,0.00022465,2]
[315988247,1709315464299,-500.0,0.00022465,2]
[315988248,1709315464308,-500.0,0.00022465,2]
[315988249,1709315464318,-500.0,0.00022465,2]
[315988250,1709315464327,-552.18,0.00022465,2]
[315988251,1709315464336,-500.0,0.00022465,2]
[315988252,1709315464346,-500.0,0.00022465,2]
[315988253,1709315464355,-190.81560094,0.00022465,2]
[315988254,1709315464365,-500.0,0.00022465,2]
[315988255,1709315464374,-500.0,0.00022465,2]
[315988256,1709315464385,-617.41,0.00022465,2]
[315988257,1709315464394,-500.0,0.00022465,2]
[315988258,1709315464403,-500.0,0.00022465,2]
[315988259,1709315464413,-500.0,0.00022465,2]
[315988260,1709315464422,-500.0,0.00022465,2]
[315988261,1709315464432,-500.0,0.00022465,2]
[315988262,1709315464442,-500.0,0.00022465,2]
[315988263,1709315464452,-500.0,0.00022465,2]
[315988264,1709315464462,-500.0,0.00022465,2]
[315988265,1709315464472,-500.0,0.00022465,2]
[315988266,1709315464481,-247.23862005,0.00022465,2]
[315988267,1709315464492,-500.0,0.00022465,2]
[315988268,1709315464502,-500.0,0.00022465,2]
[315988269,1709315464512,-500.0,0.00022465,2]
[315988270,1709315464522,-500.0,0.00022465,2]
[315988271,1709315464532,-500.0,0.00022465,2]
[315988272,1709315464542,-500.0,0.00022465,2]
[315988273,1709315464552,-500.0,0.00022465,2]
[315988274,1709315464562,-500.0,0.00022465,2]
[315988275,1709315464572,-500.0,0.00022465,2]
[315988276,1709315464582,-178.73657813,0.00022465,2]
[315988277,1709315464591,-500.0,0.00022465,2]
[315988278,1709315464600,-500.0,0.00022465,2]
[315988279,1709315464610,-500.0,0.00022465,2]
[315988280,1709315464622,-500.0,0.00022465,2]
[315988281,1709315464631,-500.0,0.00022465,2]
[315988282,1709315464641,-500.0,0.00022465,2]
[315988283,1709315464650,-500.0,0.00022465,2]
[315988284,1709315464659,-525.12,0.00022465,2]
[315988285,1709315464669,-523.14,0.00022465,2]
[315988286,1709315464679,-500.0,0.00022465,2]
[315988287,1709315464689,-500.0,0.00022465,2]
[315988288,1709315464699,-544.61,0.00022465,2]
[315988289,1709315464708,-500.0,0.00022465,2]
[315988290,1709315464718,-500.0,0.00022465,2]
[315988291,1709315464728,-500.0,0.00022465,2]
[315988292,1709315464738,-500.0,0.00022465,2]
[315988293,1709315464748,-500.0,0.00022465,2]
[315988294,1709315464757,-500.0,0.00022465,2]
[315988295,1709315464767,-206.11272475,0.00022465,2]
[315988296,1709315464777,-500.0,0.00022465,2]
[315988297,1709315464787,-500.0,0.00022465,2]
[315988298,1709315464797,-500.0,0.00022465,2]
[315988299,1709315464807,-500.0,0.00022465,2]
[315988300,1709315464817,-500.0,0.00022465,2]
[315988301,1709315464827,-500.0,0.00022465,2]
[315988302,1709315464838,-500.0,0.00022465,2]
[315988303,1709315464848,-500.0,0.00022465,2]
[315988304,1709315464858,-500.0,0.00022465,2]
[315988305,1709315464868,-500.0,0.00022465,2]
[315988306,1709315464878,-457.04129096,0.00022465,2]
[315988307,1709315464888,-500.0,0.00022465,2]
[315988308,1709315464898,-500.0,0.00022465,2]
[315988309,1709315464907,-500.0,0.00022465,2]
[315988310,1709315464917,-500.0,0.00022465,2]
[315988311,1709315464927,-500.0,0.00022465,2]
[315988312,1709315464937,-500.0,0.00022465,2]
[315988313,1709315464946,-500.0,0.00022465,2]
[315988314,1709315464956,-500.0,0.00022465,2]
[315988315,1709315464965,-306.93160771,0.00022465,2]
[315988316,1709315464975,-500.0,0.00022465,2]
[315988317,1709315464984,-546.83,0.00022465,2]
[315988318,1709315464994,-500.0,0.00022465,2]
[315988319,1709315465004,-150.0,0.00022465,2]
[315988320,1709315465013,-500.0,0.00022465,2]
[315988321,1709315465023,-500.0,0.00022465,2]
[315988322,1709315465033,-500.0,0.00022465,2]
[315988323,1709315465043,-599.58653023,0.00022465,2]
[315988324,1709315465054,-500.0,0.00022465,2]
[315988325,1709315465066,-500.0,0.00022465,2]
[315988326,1709315465075,-664.81,0.00022465,2]
[315988327,1709315465086,-500.0,0.00022465,2]
[315988328,1709315465096,-500.0,0.00022465,2]
[315988329,1709315465106,-500.0,0.00022465,2]
[315988330,1709315465116,-500.0,0.00022465,2]
[315988331,1709315465125,-500.0,0.00022465,2]
[315988332,1709315465135,-500.0,0.00022465,2]
[315988333,1709315465146,-500.0,0.00022465,2]
[315988334,1709315465156,-670.97,0.00022465,2]
[315988335,1709315465168,-500.0,0.00022465,2]
[315988336,1709315465177,-500.0,0.00022465,2]
[315988337,1709315465187,-160.92767973,0.00022465,2]
[315988338,1709315465199,-500.0,0.00022465,2]
[315988339,1709315465209,-197.06849257,0.00022465,2]
[315988340,1709315465218,-500.0,0.00022465,2]
[315988341,1709315465228,-500.0,0.00022465,2]
[315988342,1709315465239,-500.0,0.00022465,2]
[315988343,1709315465250,-500.0,0.00022465,2]
[315988344,1709315465259,-500.0,0.00022465,2]
[315988345,1709315465269,-500.0,0.00022465,2]
[315988346,1709315465279,-500.0,0.00022465,2]
[315988347,1709315465288,-500.0,0.00022465,2]
[315988348,1709315465299,-544.53,0.00022465,2]
[315988349,1709315465308,-550.26,0.00022465,2]
[315988350,1709315465318,-500.0,0.00022465,2]
[315988351,1709315465327,-500.0,0.00022465,2]
[315988352,1709315465337,-471.51832383,0.00022465,2]
[315988353,1709315465347,-869.36,0.00022465,2]
[315988354,1709315465357,-500.0,0.00022465,2]
[315988355,1709315465367,-500.0,0.00022465,2]
[315988356,1709315465377,-555.94577525,0.00022465,2]
[315988357,1709315465387,-622.6391145,0.00022465,2]
[315988358,1709315465396,-1329.59,0.00022465,2]
[315988359,1709315465407,-929.86,0.00022465,2]
[315988360,1709315465417,-526.24,0.00022465,2]
[315988361,1709315465426,-500.0,0.00022465,2]
[315988362,1709315465437,-563.21,0.00022465,2]
[315988363,1709315465447,-6946.66,0.00022465,2]
[315988364,1709315465457,-500.0,0.00022465,2]
[315988365,1709315465467,-500.0,0.00022465,2]
[315988366,1709315465477,-656.16,0.00022465,2]
[315988367,1709315465487,-732.2,0.00022465,2]
[315988368,1709315465497,-507.65,0.00022465,2]
[315988369,1709315465507,-500.0,0.00022465,2]
[315988370,1709315465517,-624.26,0.00022465,2]
[315988371,1709315465527,-500.0,0.00022465,2]
[315988372,1709315465537,-619.16,0.00022465,2]
[315988373,1709315465547,-500.0,0.00022465,2]
[315988374,1709315465557,-594.79,0.00022465,2]
[315988375,1709315465567,-1910.74,0.00022465,2]
[315988376,1709315465577,-500.0,0.00022465,2]
[315988377,1709315465588,-500.0,0.00022465,2]
[315988378,1709315465597,-500.0,0.00022465,2]
[315988379,1709315465607,-787.67,0.00022465,2]
[315988380,1709315465618,-500.0,0.00022465,2]
[315988381,1709315465628,-500.0,0.00022465,2]
[315988382,1709315465638,-666.11,0.00022465,2]
[315988383,1709315465650,-500.0,0.00022465,2]
[315988384,1709315465723,-758.67,0.00022465,2]
[315988385,1709315465734,-500.0,0.00022465,2]
[315988386,1709315465745,-500.0,0.00022465,2]
[315988387,1709315465755,-500.0,0.00022465,2]
[315988388,1709315465765,-1272.43,0.00022465,2]
[315988389,1709315465776,-500.0,0.00022465,2]
[315988390,1709315465786,-585.06,0.00022465,2]
[315988391,1709315465797,-500.0,0.00022465,2]
[315988392,1709315465807,-500.0,0.00022465,2]
[315988393,1709315465817,-500.0,0.00022465,2]
[315988394,1709315465827,-500.0,0.00022465,2]
[315988395,1709315465838,-500.0,0.00022465,2]
[315988396,1709315465849,-500.0,0.00022465,2]
[315988397,1709315465860,-500.0,0.00022465,2]
[315988398,1709315465871,-618.2,0.00022465,2]
[315988399,1709315465881,-665.9,0.00022465,2]
[315988400,1709315465892,-500.0,0.00022465,2]
[315988401,1709315465902,-500.0,0.00022465,2]
[315988402,1709315465912,-1673.3,0.00022465,2]
[315988403,1709315465921,-663.58,0.00022465,2]
[315988404,1709315465931,-9419.71,0.00022465,2]
[315988405,1709315465941,-2865.09,0.00022465,2]
[315988406,1709315465951,-500.0,0.00022465,2]
[315988407,1709315465960,-500.0,0.00022465,2]
[315988408,1709315465970,-528.92,0.00022465,2]
[315988409,1709315465979,-500.0,0.00022465,2]
[315988410,1709315465989,-254.12,0.00022465,2]
[315988411,1709315465998,-500.0,0.00022465,2]
[315988412,1709315466008,-944.55,0.00022465,2]
[315988413,1709315466018,-1231.33,0.00022465,2]
[315988414,1709315466028,-1977.21,0.00022465,2]
[315988415,1709315466037,-1758.33,0.00022465,2]
[315988416,1709315466047,-500.0,0.00022465,2]
[315988417,1709315466056,-1744.78,0.00022465,2]
[315988418,1709315466066,-2280.14,0.00022465,2]
[315988419,1709315466076,-500.0,0.00022465,2]
[315988420,1709315466086,-1846.58,0.00022465,2]
[315988421,1709315466095,-712.05,0.00022465,2]
[315988422,1709315466106,-1450.15,0.00022465,2]
[315988423,1709315466116,-1761.94,0.00022465,2]
[315988424,1709315466126,-500.0,0.00022465,2]
[315988425,1709315466135,-584.38,0.00022465,2]
[315988426,1709315466145,-500.0,0.00022465,2]
[315988427,1709315466159,-503.41,0.00022465,2]
[315988428,1709315466168,-500.0,0.00022465,2]
[315988429,1709315466178,-500.0,0.00022465,2]
[315988430,1709315466188,-694.9,0.00022465,2]
[315988431,1709315466200,-1357.38,0.00022465,2]
[315988432,1709315466210,-500.0,0.00022465,2]
[315988433,1709315466219,-500.0,0.00022465,2]
[315988434,1709315466230,-500.0,0.00022465,2]
[315988435,1709315466240,-558.06,0.00022465,2]
[315988436,1709315466250,-528.52,0.00022465,2]
[315988437,1709315466259,-5039.85,0.00022465,2]
[315988438,1709315466269,-1616.86,0.00022465,2]
[315988439,1709315466278,-500.0,0.00022465,2]
[315988440,1709315466287,-711.94,0.00022465,2]
[315988441,1709315466297,-500.0,0.00022465,2]
[315988442,1709315466307,-2715.45,0.00022465,2]
[315988443,1709315466317,-151.0,0.00022465,7]
[315988444,1709315466328,-2578.97,0.00022465,2]
[315988445,1709315466338,-604.56,0.00022465,2]
[315988446,1709315466347,-615.02,0.00022465,2]
[315988447,1709315466356,-500.0,0.00022465,2]
[315988448,1709315466365,-780.7,0.00022465,2]
[315988449,1709315466375,-2063.98,0.00022465,2]
[315988450,1709315466384,-500.0,0.00022465,2]
[315988451,1709315466393,-500.0,0.00022465,2]
[315988452,1709315466402,-2907.93,0.00022465,2]
[315988453,1709315466411,-246.01661286,0.00022465,2]
[315988454,1709315466421,-1187.01,0.00022465,2]
[315988455,1709315466431,-840.0,0.00022465,2]
[315988456,1709315466441,-1838.6,0.00022465,2]
[315988457,1709315466451,-500.0,0.00022465,2]
[315988458,1709315466460,-500.0,0.00022465,2]
[315988459,1709315466470,-528.96,0.00022465,2]
[315988460,1709315466480,-3945.02,0.00022465,2]
[315988461,1709315466490,-637.74,0.00022465,2]
[315988462,1709315466500,-500.0,0.00022465,2]
[315988463,1709315466510,-1575.62,0.00022465,2]
[315988464,1709315466520,-500.0,0.00022465,2]
[315988465,1709315466529,-648.77,0.00022465,2]
[315988466,1709315466539,-2766.29,0.00022465,2]
[315988467,1709315466549,-724.82,0.00022465,2]
[315988468,1709315466558,-500.0,0.00022465,2]
[315988469,1709315466568,-500.0,0.00022465,2]
[315988470,1709315466577,-2335.5,0.00022465,2]
[315988471,1709315466587,-500.0,0.00022465,2]
[315988472,1709315466597,-500.0,0.00022465,2]
[315988473,1709315466607,-2362.12,0.00022465,2]
[315988474,1709315466616,-500.0,0.00022465,2]
[315988475,1709315466627,-500.0,0.00022465,2]
[315988476,1709315466637,-704.7,0.00022465,2]
[315988477,1709315466647,-500.0,0.00022465,2]
[315988478,1709315466658,-8337.41,0.00022465,2]
[315988479,1709315466668,-583.26,0.00022465,2]
[315988480,1709315466679,-500.0,0.00022465,2]
[315988481,1709315466689,-500.0,0.00022465,2]
[315988482,1709315466700,-500.0,0.00022465,2]
[315988483,1709315466710,-1148.57,0.00022465,2]
[315988484,1709315466719,-1699.62,0.00022465,2]
[315988485,1709315466729,-500.0,0.00022465,2]
[315988486,1709315466738,-551.1,0.00022465,2]
[315988487,1709315466748,-500.0,0.00022465,2]
[315988488,1709315466758,-500.0,0.00022465,2]
[315988489,1709315466767,-701.9,0.00022465,2]
[315988490,1709315466776,-5377.1,0.00022465,2]
[315988491,1709315466786,-4734.59,0.00022465,2]
[315988492,1709315466795,-1549.54,0.00022465,2]
[315988493,1709315466805,-1054.75,0.00022465,2]
[315988494,1709315466814,-575.91,0.00022465,2]
[315988495,1709315466824,-295.82,0.00022465,2]
[315988496,1709315466833,-500.0,0.00022465,2]
[315988497,1709315466842,-500.0,0.00022465,2]
[315988498,1709315466851,-151.0,0.00022465,7]
[315988499,1709315466862,-161.92746072,0.00022468,6]
[315988500,1709315466875,-10084.94642264,0.00022475,2]
[315988501,1709315466886,-505.03,0.00022492,3]
[315988502,1709315466898,-6959.03722845,0.000225,2]
[315988503,1709315466907,-150.0,0.00022505,2]
[315988504,1709315466917,-1261.92221701,0.00022518,2]
[315988505,1709315466927,-162.81523999,0.00022533,2]
[315988506,1709315466936,-150.03,0.00022534,2]
[315988507,1709315466952,-258.43703722,0.00022538,2]
[315988508,1709315466962,-1166.53169561,0.00022561,2]
[315988509,1709315466971,-179.05,0.00022562,2]
[315988510,1709315466980,-173.65697339,0.00022574,2]
[315988511,1709315466990,-150.0,0.00022574,2]
[315988512,1709315466999,-764.5,0.00022575,2]
[315988513,1709315467016,-500.0,0.00022575,2]
[315988514,1709315467025,-500.0,0.00022575,2]
[315988515,1709315467043,-500.0,0.00022575,2]
[315988516,1709315467052,-500.0,0.00022575,2]
[315988517,1709315467062,-500.0,0.00022575,2]
[315988518,1709315467077,-552.18,0.00022575,2]
[315988519,1709315467092,-500.0,0.00022575,2]
[315988520,1709315467102,-500.0,0.00022575,2]
[315988521,1709315467111,-500.0,0.00022575,2]
[315988522,1709315467121,-500.0,0.00022575,2]
[315988523,1709315467130,-500.0,0.00022575,2]
[315988524,1709315467139,-500.0,0.00022575,2]
[315988525,1709315467149,-500.0,0.00022575,2]
[315988526,1709315467161,-500.0,0.00022575,2]
[315988527,1709315467178,-500.0,0.00022575,2]
[315988528,1709315467196,-500.0,0.00022575,2]
[315988529,1709315467208,-500.0,0.00022575,2]
[315988530,1709315467218,-500.0,0.00022575,2]
[315988531,1709315467230,-401.07,0.00022575,2]